bitfinex/quotes_SOLUSD_20220211
["timestamp","ask_amount","ask_price","bid_price","bid_amount"]
[1644582380641,36.76158323,106.35,106.3,0.024]
[1644582380843,4.702,106.34,106.29,6.78707244]
[1644582381040,15.982,106.39,106.28,4.702]
[1644582381242,4.702,106.39,106.28,4.726]
[1644582381444,4.702,106.39,106.29,4.91606568]
[1644582381639,4.702,106.39,106.3,4.7]
[1644582381840,40.0403,106.4,106.31,0.024]
[1644582382040,43.71940148,106.39,106.31,0.024]
[1644582382240,4.7,106.41,106.32,4.7]
[1644582382441,4.7,106.43,106.33,0.024]
[1644582382643,11.28,106.46,106.34,4.7]
[1644582382842,4.699,106.45,106.35,22.9407]
[1644582383041,4.699,106.45,106.36,0.024]
[1644582383243,35.95764664,106.44,106.36,0.024]
[1644582383544,35.94976299,106.42,106.36,0.024]
[1644582383744,35.94976299,106.42,106.35,22.9167]
[1644582383941,35.94976299,106.42,106.34,27.5774]
[1644582384142,4.7,106.41,106.34,27.5774]
[1644582384442,4.7,106.41,106.34,4.724]
[1644582385042,37.20559143,106.4,106.34,4.724]
[1644582385240,37.20559143,106.4,106.33,0.024]
[1644582385441,37.45559143,106.4,106.33,0.024]
[1644582386446,37.20559143,106.4,106.33,23.3383403]
[1644582386643,40.1623,106.46,106.34,4.7]
[1644582386844,40.1623,106.46,106.35,24.2216]
[1644582387043,40.1623,106.46,106.36,4.699]
[1644582387242,15.98,106.46,106.36,28.8965]
[1644582387449,15.98,106.46,106.37,0.024]
[1644582387642,41.68096703,106.45,106.37,0.024]
[1644582388442,41.68096703,106.45,106.38,4.698]
[1644582388643,41.68096703,106.45,106.38,4.948]
[1644582389243,41.68096703,106.45,106.38,4.698]
[1644582389645,41.68096703,106.45,106.38,4.948]
[1644582391946,27.9825,106.49,106.39,3.23935986]
[1644582392145,27.9825,106.49,106.4,4.697]
[1644582392345,4.698,106.49,106.4,4.697]
[1644582392545,4.698,106.49,106.4,15.08366791]
[1644582392745,11.31925561,106.52,106.4,15.08366791]
[1644582392944,44.93422732,106.48,106.41,47.48]
[1644582393547,45.18422732,106.48,106.41,47.48]
[1644582393947,45.18422732,106.48,106.4,4.697]
[1644582394149,44.93422732,106.48,106.4,0.25]
[1644582394546,44.93422732,106.48,106.38,27.2768]
[1644582394746,44.93422732,106.48,106.38,27.5268]
[1644582394949,44.93422732,106.48,106.38,50.3918]
[1644582395147,44.93422732,106.48,106.39,4.86987321]
[1644582395347,44.93422732,106.48,106.4,4.697]
[1644582395552,44.93422732,106.48,106.4,4.947]
[1644582395747,44.93422732,106.48,106.4,4.697]
[1644582395947,4.697,106.47,106.38,61.3288]
[1644582396752,36.63929006,106.46,106.38,61.3288]
[1644582396948,36.63929006,106.46,106.38,45.4448]
[1644582397347,36.88929006,106.46,106.38,45.4448]
[1644582398147,4.698,106.45,106.38,45.4448]
[1644582399249,47.4913413,106.44,106.38,45.4448]
[1644582399448,4.698,106.43,106.37,0.024]
[1644582399649,4.698,106.43,106.36,0.024]
[1644582400349,46.47888563,106.42,106.36,0.024]
[1644582400549,46.47888563,106.42,106.35,4.698]
[1644582401549,46.47888563,106.42,106.35,4.948]
[1644582402752,46.47888563,106.42,106.35,0.25]
[1644582403151,46.47888563,106.42,106.34,55.16755555]
[1644582403355,46.47888563,106.42,106.34,52.4774]
[1644582403554,46.47888563,106.42,106.34,74.01575142]
[1644582403751,46.47888563,106.42,106.34,52.4774]
[1644582404152,46.47888563,106.42,106.34,54.86106791]
[1644582404455,46.47888563,106.42,106.35,4.86834961]
[1644582404655,46.47888563,106.42,106.36,4.699]
[1644582405454,46.47888563,106.42,106.35,0.024]
[1644582406655,46.47888563,106.42,106.35,2.40766791]
[1644582407057,46.47888563,106.42,106.35,0.024]
[1644582408071,46.72888563,106.42,106.35,0.024]
[1644582408958,46.72888563,106.42,106.33,4.89573874]
[1644582409159,4.7,106.41,106.34,0.024]
[1644582409359,4.7,106.41,106.33,4.89573874]
[1644582409360,38.38158705,106.4,106.33,4.89573874]
[1644582409563,4.7,106.39,106.33,0.024]
[1644582409761,42.24630227,106.38,106.32,4.699]
[1644582410362,4.7,106.41,106.32,4.699]
[1644582410562,4.7,106.41,106.33,7.27995005]
[1644582410759,11.28,106.45,106.34,12.26243769]
[1644582410960,11.28,106.45,106.35,28.19508214]
[1644582411162,11.28,106.45,106.36,4.699]
[1644582411461,52.21502837,106.44,106.36,4.723]
[1644582411663,52.21502837,106.44,106.37,0.024]
[1644582411861,52.46502837,106.44,106.36,0.024]
[1644582412864,52.21502837,106.44,106.36,0.024]
[1644582413062,52.46502837,106.44,106.36,4.89991909]
[1644582413264,52.46502837,106.44,106.36,5.14991909]
[1644582413464,52.21502837,106.44,106.36,5.14991909]
[1644582413663,52.21502837,106.44,106.36,0.274]
[1644582413867,47.51602837,106.44,106.35,25.78695555]
[1644582414063,48.485772,106.42,106.36,4.8760488]
[1644582414680,48.735772,106.42,106.36,4.8760488]
[1644582415080,48.735772,106.42,106.35,23.0968]
[1644582415482,4.699,106.41,106.35,23.0968]
[1644582415780,48.43498169,106.4,106.35,23.0968]
[1644582416185,48.68498169,106.4,106.35,23.0968]
[1644582416383,48.43498169,106.4,106.35,27.7968]
[1644582416583,48.43498169,106.4,106.35,28.0468]
[1644582416986,48.43498169,106.4,106.36,4.88010735]
[1644582417386,48.43498169,106.4,106.35,23.0968]
[1644582417585,57.15398169,106.4,106.33,2.69015555]
[1644582417785,57.15398169,106.4,106.32,30.13604679]
[1644582417991,57.15398169,106.4,106.33,4.88299124]
[1644582418186,48.43498169,106.4,106.33,7.57314679]
[1644582418587,48.68498169,106.4,106.33,7.82314679]
[1644582418788,48.68498169,106.4,106.34,4.88299124]
[1644582418987,48.43498169,106.4,106.34,7.57314679]
[1644582419388,23.2301,106.44,106.34,7.82314679]
[1644582419587,0.25,106.44,106.35,27.6544]
[1644582419791,0.25,106.44,106.35,37.6112147]
[1644582419987,0.25,106.44,106.36,9.9568147]
[1644582420191,0.25,106.44,106.37,4.699]
[1644582420489,0.25,106.44,106.37,4.949]
[1644582420687,39.94673881,106.45,106.37,27.8983]
[1644582420891,40.19673881,106.45,106.37,27.8983]
[1644582421493,40.19673881,106.45,106.37,23.1993]
[1644582423395,40.19673881,106.45,106.38,4.8791253]
[1644582423797,4.699,106.47,106.38,7.51279321]
[1644582423999,4.698,106.49,106.39,4.8791253]
[1644582424198,4.698,106.49,106.4,23.9136]
[1644582424902,41.78588717,106.48,106.4,23.9136]
[1644582425099,42.98419041,106.46,106.4,23.9136]
[1644582425299,4.697,106.45,106.4,23.9136]
[1644582425499,45.94697844,106.44,106.4,23.9136]
[1644582426099,46.19697844,106.44,106.4,23.9136]
[1644582426398,46.19697844,106.44,106.38,4.697]
[1644582426900,47.7722,106.5,106.39,4.88264559]
[1644582427101,0.03925561,106.52,106.4,4.697]
[1644582427507,4.73525561,106.52,106.41,51.81114559]
[1644582427901,38.52057831,106.51,106.41,47.1785]
[1644582428101,41.72857807,106.49,106.41,47.1785]
[1644582428500,41.97857807,106.49,106.41,47.1785]
[1644582429603,41.72857807,106.49,106.42,4.697]
[1644582430004,41.72857807,106.49,106.42,4.947]
[1644582430203,41.72857807,106.49,106.42,4.697]
[1644582430708,41.72857807,106.49,106.41,46.9285]
[1644582430906,41.97857807,106.49,106.4,4.696]
[1644582431109,4.697,106.48,106.39,4.697]
[1644582431306,44.69107687,106.47,106.38,2.40766791]
[1644582431507,4.698,106.46,106.38,0.024]
[1644582431705,38.35475956,106.45,106.38,0.024]
[1644582431906,38.35475956,106.45,106.38,4.722]
[1644582432110,38.60475956,106.45,106.38,0.024]
[1644582433208,45.58468994,106.43,106.38,0.024]
[1644582433408,45.58468994,106.43,106.36,23.8716]
[1644582433610,45.83468994,106.43,106.36,0.024]
[1644582435112,4.699,106.42,106.36,0.024]
[1644582435410,43.11625368,106.41,106.35,4.90551604]
[1644582435610,43.36625368,106.41,106.35,4.90551604]
[1644582437314,43.11625368,106.41,106.35,4.90551604]
[1644582437516,43.11625368,106.41,106.36,4.7]
[1644582437915,43.11625368,106.41,106.35,0.024]
[1644582438516,43.36625368,106.41,106.35,0.024]
[1644582439619,43.36625368,106.41,106.35,4.90711516]
[1644582439817,43.36625368,106.41,106.35,0.024]
[1644582440417,43.11625368,106.41,106.35,0.024]
[1644582440637,43.36625368,106.41,106.35,0.024]
[1644582441838,43.36625368,106.41,106.33,2.71415555]
[1644582442039,43.36625368,106.41,106.33,7.59708826]
[1644582443140,43.36625368,106.41,106.34,4.7]
[1644582443439,43.36625368,106.41,106.34,4.724]
[1644582443639,4.7,106.4,106.34,0.024]
[1644582443839,18.25,106.4,106.33,0.024]
[1644582444038,18.5,106.4,106.33,0.024]
[1644582444237,36.35064988,106.39,106.33,0.024]
[1644582444438,4.7,106.38,106.31,0.024]
[1644582444638,0.25,106.38,106.3,7.41415555]
[1644582444838,0.25,106.38,106.3,12.29771941]
[1644582445040,0.25,106.38,106.3,7.59771941]
[1644582445238,0.25,106.38,106.3,4.90756386]
[1644582445838,54.60064988,106.39,106.3,4.90756386]
[1644582445839,54.85064988,106.39,106.3,4.90756386]
[1644582446037,54.85064988,106.39,106.31,0.024]
[1644582446038,50.15064988,106.39,106.31,0.024]
[1644582448348,49.90064988,106.39,106.31,0.024]
[1644582448544,49.90064988,106.39,106.34,24.524]
[1644582449146,4.7,106.38,106.34,24.524]
[1644582449352,44.85427573,106.37,106.34,24.524]
[1644582449546,6.06439994,106.36,106.34,24.524]
[1644582449746,36.87693225,106.35,106.34,24.524]
[1644582450154,6.06439994,106.36,106.34,24.524]
[1644582450348,3.03219997,106.36,106.34,24.524]
[1644582450652,51.2003,106.44,106.35,7.08366791]
[1644582450853,23.6042,106.44,106.35,7.08366791]
[1644582451051,23.6042,106.44,106.36,0.024]
[1644582451253,42.29092627,106.43,106.36,0.024]
[1644582452049,42.54092627,106.43,106.36,0.024]
[1644582452252,42.29092627,106.43,106.36,0.024]
[1644582452750,4.699,106.42,106.36,0.024]
[1644582452948,4.699,106.42,106.34,71.9886]
[1644582452949,47.75213197,106.41,106.34,71.9886]
[1644582453550,48.00213197,106.41,106.34,71.9886]
[1644582458054,48.00213197,106.41,106.34,24.548]
[1644582458957,4.7,106.4,106.34,24.548]
[1644582459156,48.52276806,106.39,106.34,24.524]
[1644582459355,4.7,106.38,106.34,24.524]
[1644582459563,4.95,106.38,106.34,24.524]
[1644582460258,44.08204666,106.37,106.34,24.524]
[1644582460459,6.06439994,106.36,106.34,24.524]
[1644582460658,38.72399221,106.35,106.34,24.524]
[1644582462461,14.44999221,106.35,106.31,0.024]
[1644582462661,14.44999221,106.35,106.3,2.69015555]
[1644582462863,14.44999221,106.35,106.3,7.58057257]
[1644582464365,14.19999221,106.35,106.3,7.58057257]
[1644582464866,14.44999221,106.35,106.3,7.58057257]
[1644582466669,14.19999221,106.35,106.3,7.58057257]
[1644582467366,14.19999221,106.35,106.3,25.35470209]
[1644582467566,14.19999221,106.35,106.31,4.89041702]
[1644582468568,13.55,106.39,106.31,4.89041702]
[1644582468769,4.7,106.39,106.31,7.60457257]
[1644582468967,4.95,106.39,106.31,7.60457257]
[1644582469671,43.6643975,106.38,106.31,4.91441702]
[1644582469872,43.6643975,106.38,106.31,7.60457257]
[1644582470072,43.9143975,106.38,106.31,7.60457257]
[1644582471072,43.6643975,106.38,106.31,7.60457257]
[1644582472173,48.3643975,106.38,106.31,7.60457257]
[1644582472373,48.6143975,106.38,106.31,7.60457257]
[1644582472575,48.6143975,106.38,106.31,2.71415555]
[1644582472775,43.9143975,106.38,106.31,2.71415555]
[1644582474084,4.7,106.37,106.31,2.71415555]
[1644582474292,36.56449616,106.36,106.31,2.69015555]
[1644582474796,36.81449616,106.36,106.31,2.69015555]
[1644582475493,36.81449616,106.36,106.31,7.39215555]
[1644582475693,36.81449616,106.36,106.32,4.89041702]
[1644582475994,36.81449616,106.36,106.3,2.71415555]
[1644582476193,36.81449616,106.36,106.3,7.60339862]
[1644582477396,4.702,106.35,106.3,7.60339862]
[1644582477597,11.932,106.35,106.29,27.26835555]
[1644582477795,11.932,106.35,106.28,2.71415555]
[1644582477995,25.482,106.35,106.28,2.69015555]
[1644582478195,25.482,106.35,106.28,0.024]
[1644582478196,35.60900808,106.34,106.28,0.024]
[1644582478397,39.65223632,106.32,106.27,2.71415555]
[1644582478595,50.80323632,106.32,106.27,2.69015555]
[1644582478796,50.80323632,106.32,106.26,2.69015555]
[1644582478996,50.80323632,106.32,106.26,2.94015555]
[1644582479199,39.90223632,106.32,106.27,2.69015555]
[1644582479397,36.4489,106.35,106.27,2.94015555]
[1644582479597,13.55,106.36,106.28,2.69015555]
[1644582479800,23.9431,106.37,106.29,2.69015555]
[1644582479999,23.9431,106.37,106.29,2.96415555]
[1644582480609,37.77337542,106.36,106.29,2.96415555]
[1644582481402,38.02337542,106.36,106.29,39.085535]
[1644582481809,38.02337542,106.36,106.31,35.43268797]
[1644582482010,38.02337542,106.36,106.31,34.93268797]
[1644582482704,37.77337542,106.36,106.31,34.93268797]
[1644582482903,37.77337542,106.36,106.31,35.18268797]
[1644582483303,22.8764,106.38,106.31,35.18268797]
[1644582483506,22.8764,106.38,106.31,0.024]
[1644582483709,4.7,106.37,106.3,2.71415555]
[1644582483904,27.5764,106.38,106.31,4.7]
[1644582484109,27.8264,106.38,106.31,4.724]
[1644582484506,35.01126113,106.37,106.31,4.724]
[1644582484705,35.01126113,106.37,106.31,4.7]
[1644582484908,35.26126113,106.37,106.31,4.7]
[1644582488110,4.7,106.36,106.3,24.1552]
[1644582488308,35.26126113,106.37,106.3,24.1552]
[1644582489111,35.01126113,106.37,106.3,53.65171119]
[1644582489311,35.01126113,106.37,106.3,56.59186674]
[1644582489514,35.01126113,106.37,106.31,2.69015555]
[1644582489911,35.01126113,106.37,106.3,27.09535555]
[1644582490716,35.26126113,106.37,106.3,27.09535555]
[1644582491114,35.26126113,106.37,106.31,36.29748012]
[1644582491314,0.25,106.37,106.31,36.29748012]
[1644582491518,4.952,106.4,106.31,39.23763567]
[1644582491715,27.8296,106.41,106.32,4.724]
[1644582491912,27.8296,106.41,106.33,0.024]
[1644582492512,42.46762052,106.4,106.33,0.024]
[1644582492713,42.52906485,106.38,106.33,0.024]
[1644582492914,42.52906485,106.38,106.32,26.31485555]
[1644582494623,42.52906485,106.38,106.33,30.76407082]
[1644582495020,42.52906485,106.38,106.33,31.01407082]
[1644582495421,42.52906485,106.38,106.33,0.25]
[1644582496022,42.52906485,106.38,106.32,26.31485555]
[1644582496424,42.52906485,106.38,106.33,37.18602156]
[1644582496624,42.52906485,106.38,106.33,37.43602156]
[1644582497023,42.52906485,106.38,106.33,0.25]
[1644582498026,42.52906485,106.38,106.32,26.31485555]
[1644582498227,42.52906485,106.38,106.32,76.35962526]
[1644582499225,42.52906485,106.38,106.32,71.65962526]
[1644582499426,0.25,106.38,106.32,68.96946971]
[1644582499627,4.95,106.4,106.32,74.04329317]
[1644582499826,0.25,106.4,106.32,74.06729317]
[1644582500029,0.25,106.43,106.33,2.69015555]
[1644582500230,13.55,106.44,106.33,2.71415555]
[1644582500555,27.891,106.45,106.33,2.71415555]
[1644582500556,70.78000339,106.45,106.38,1.33068891]
[1644582500754,70.78000339,106.45,106.38,48.76354961]
[1644582500955,70.78000339,106.45,106.38,49.01354961]
[1644582501356,70.819259,106.45,106.38,49.01354961]
[1644582501553,47.628259,106.45,106.38,49.01354961]
[1644582501951,47.878259,106.45,106.38,49.01354961]
[1644582502152,47.628259,106.45,106.38,41.89954961]
[1644582502551,47.628259,106.45,106.38,1.58068891]
[1644582502750,47.628259,106.45,106.37,1.33068891]
[1644582502952,4.699,106.44,106.37,1.33068891]
[1644582503351,4.949,106.44,106.37,1.58068891]
[1644582503751,48.14922749,106.43,106.38,45.31737184]
[1644582503958,48.14922749,106.43,106.38,50.01537184]
[1644582504151,0.25,106.43,106.38,50.26537184]
[1644582505056,0.25,106.43,106.38,50.01537184]
[1644582505254,46.21026015,106.45,106.38,50.01537184]
[1644582505455,50.86900454,106.45,106.38,45.31737184]
[1644582505656,51.11900454,106.45,106.38,45.31737184]
[1644582506256,4.698,106.45,106.38,56.46137184]
[1644582506462,0.03925561,106.46,106.39,4.698]
[1644582506657,4.73725561,106.48,106.39,30.84838891]
[1644582506856,0.03925561,106.47,106.39,33.48205682]
[1644582507056,22.548,106.49,106.39,33.48205682]
[1644582507057,0.03925561,106.48,106.39,33.48205682]
[1644582507255,43.38565125,106.48,106.4,29.29373556]
[1644582507457,38.64939564,106.48,106.41,4.697]
[1644582507658,4.697,106.47,106.4,0.25]
[1644582507858,4.697,106.47,106.39,26.40038891]
[1644582508068,4.73625561,106.47,106.39,24.8197]
[1644582508266,4.98625561,106.47,106.39,24.8197]
[1644582508461,7.36992352,106.47,106.39,24.8197]
[1644582508661,45.80102731,106.46,106.4,39.58331172]
[1644582508869,45.80102731,106.46,106.4,44.28031172]
[1644582509061,46.05102731,106.46,106.4,44.53031172]
[1644582509463,46.05102731,106.46,106.4,44.28031172]
[1644582509661,46.05102731,106.46,106.4,4.697]
[1644582510263,4.697,106.45,106.4,4.697]
[1644582510664,35.64831722,106.44,106.4,4.697]
[1644582511067,35.89831722,106.44,106.4,4.697]
[1644582511869,35.89831722,106.44,106.37,3.71435682]
[1644582512066,35.89831722,106.44,106.36,30.65618891]
[1644582512265,35.89831722,106.44,106.37,1.33068891]
[1644582512667,35.89831722,106.44,106.36,30.90618891]
[1644582512866,35.64831722,106.44,106.37,39.63685144]
[1644582513067,35.89831722,106.44,106.38,4.699]
[1644582513370,35.89831722,106.44,106.37,39.63685144]
[1644582513568,35.89831722,106.44,106.36,30.90618891]
[1644582513768,40.63657283,106.44,106.36,26.20818891]
[1644582513968,35.93757283,106.44,106.36,26.20818891]
[1644582514169,4.699,106.43,106.36,26.20818891]
[1644582514570,44.06894551,106.42,106.36,25.95818891]
[1644582515071,57.86894551,106.42,106.35,6.02968891]
[1644582515271,4.699,106.41,106.35,4.699]
[1644582515470,4.949,106.41,106.35,4.699]
[1644582515670,42.22358469,106.4,106.35,4.699]
[1644582516070,42.47358469,106.4,106.35,4.699]
[1644582517075,42.22358469,106.4,106.35,4.699]
[1644582517474,42.47358469,106.4,106.35,6.02968891]
[1644582517774,42.47358469,106.4,106.35,4.699]
[1644582517974,42.47358469,106.4,106.34,1.35468891]
[1644582518175,42.47358469,106.4,106.34,1.33068891]
[1644582523005,42.22358469,106.4,106.34,1.33068891]
[1644582524405,42.47358469,106.4,106.34,1.33068891]
[1644582525907,42.22358469,106.4,106.34,1.33068891]
[1644582527409,42.47358469,106.4,106.34,1.33068891]
[1644582529112,42.47358469,106.4,106.35,1.33068891]
[1644582529310,42.47358469,106.4,106.34,1.35468891]
[1644582529511,42.47358469,106.4,106.34,1.33068891]
[1644582530012,4.7,106.42,106.35,33.4558613]
[1644582530211,4.7,106.42,106.37,1.33068891]
[1644582530412,0.03925561,106.45,106.39,1.33068891]
[1644582530612,0.03925561,106.46,106.39,1.58068891]
[1644582530812,24.51335561,106.48,106.39,1.58068891]
[1644582531012,13.58925561,106.47,106.38,3.71435682]
[1644582531211,13.58925561,106.47,106.37,23.3934]
[1644582531212,13.58925561,106.47,106.37,24.72408891]
[1644582531414,42.02788637,106.46,106.38,2.38366791]
[1644582531618,42.02788637,106.46,106.38,3.96435682]
[1644582532213,42.02788637,106.46,106.38,1.33068891]
[1644582532414,42.02788637,106.46,106.39,3.71435682]
[1644582532615,0.03925561,106.45,106.38,1.33068891]
[1644582532813,42.31714198,106.46,106.38,1.33068891]
[1644582533013,35.34442227,106.44,106.38,1.33068891]
[1644582533416,35.59442227,106.44,106.38,1.58068891]
[1644582534216,1.671,106.45,106.39,32.4467178]
[1644582534415,0.03925561,106.46,106.39,39.52838571]
[1644582534615,0.03925561,106.47,106.4,3.71435682]
[1644582534815,0.03925561,106.47,106.39,4.698]
[1644582534816,1.675,106.46,106.39,6.27868891]
[1644582535215,0.03925561,106.48,106.39,6.27868891]
[1644582535416,1.71625561,106.47,106.39,6.27868891]
[1644582535616,39.80858315,106.46,106.39,47.04656707]
[1644582536016,40.05858315,106.46,106.39,47.04656707]
[1644582536617,39.80858315,106.46,106.39,47.04656707]
[1644582537019,39.80858315,106.46,106.39,42.34856707]
[1644582537218,39.80858315,106.46,106.39,1.58068891]
[1644582537417,39.80858315,106.46,106.39,1.33068891]
[1644582537618,39.80858315,106.46,106.38,6.02868891]
[1644582537819,1.673,106.45,106.37,24.72408891]
[1644582538018,15.51225561,106.45,106.37,24.72408891]
[1644582538219,47.3890059,106.44,106.37,63.24568968]
[1644582538419,1.96225561,106.45,106.38,1.33068891]
[1644582538719,1.96225561,106.45,106.4,1.33068891]
[1644582538720,1.71225561,106.45,106.4,1.33068891]
[1644582538922,1.673,106.45,106.41,4.698]
[1644582539118,1.672,106.48,106.4,1.33068891]
[1644582539321,1.672,106.48,106.39,25.99288891]
[1644582539520,45.99033899,106.47,106.39,62.33239554]
[1644582539719,46.0295946,106.47,106.39,26.24288891]
[1644582539920,46.2795946,106.47,106.39,26.24288891]
[1644582540522,46.2795946,106.47,106.4,1.33068891]
[1644582540722,46.24033899,106.47,106.4,41.63179065]
[1644582540922,46.24033899,106.47,106.4,41.88179065]
[1644582541123,45.99033899,106.47,106.4,41.88179065]
[1644582542121,45.99033899,106.47,106.41,4.697]
[1644582542321,45.99033899,106.47,106.42,34.31000566]
[1644582542521,46.24033899,106.47,106.42,0.25]
[1644582542723,0.03925561,106.49,106.41,0.25]
[1644582542922,1.674,106.49,106.4,1.58068891]
[1644582543121,1.674,106.49,106.4,1.33068891]
[1644582543322,1.674,106.49,106.4,0.373]
[1644582543725,41.33633185,106.48,106.4,0.373]
[1644582543922,1.675,106.47,106.4,0.123]
[1644582544123,1.925,106.47,106.4,0.123]
[1644582544321,15.475,106.47,106.4,0.123]
[1644582544525,2.38366791,106.46,106.4,0.123]
[1644582544823,45.11715803,106.44,106.4,0.123]
[1644582545222,45.36715803,106.44,106.4,0.123]
[1644582547227,60.223,106.43,106.37,1.33068891]
[1644582547428,60.223,106.43,106.35,1.33068891]
[1644582547625,15.51225561,106.43,106.35,1.33068891]
[1644582547825,13.83925561,106.43,106.36,6.02968891]
[1644582548026,44.7557763,106.42,106.36,1.33068891]
[1644582548630,45.0057763,106.42,106.35,30.10538891]
[1644582548826,46.6757763,106.42,106.35,30.10538891]
[1644582549832,57.8637763,106.42,106.35,6.02968891]
[1644582550028,71.4137763,106.42,106.35,4.699]
[1644582551629,69.7437763,106.42,106.34,1.35468891]
[1644582552028,69.7437763,106.42,106.34,0.024]
[1644582552432,1.676,106.41,106.34,0.024]
[1644582552729,46.17729426,106.4,106.34,21.70371497]
[1644582552929,46.17729426,106.4,106.36,1.33068891]
[1644582553128,46.17729426,106.4,106.34,17.00371497]
[1644582553329,46.17729426,106.4,106.34,1.33068891]
[1644582554031,46.42729426,106.4,106.34,1.33068891]
[1644582554430,46.42729426,106.4,106.33,1.35468891]
[1644582554830,46.42729426,106.4,106.34,1.33068891]
[1644582555632,46.42729426,106.4,106.33,1.35468891]
[1644582557033,46.42729426,106.4,106.33,1.60468891]
[1644582557231,46.42729426,106.4,106.34,6.03068891]
[1644582557633,46.42729426,106.4,106.34,6.28068891]
[1644582557833,46.17729426,106.4,106.34,6.28068891]
[1644582558033,46.42729426,106.4,106.34,6.28068891]
[1644582558432,48.12629426,106.4,106.34,6.03068891]
[1644582558633,48.12629426,106.4,106.34,4.7]
[1644582559732,48.12629426,106.4,106.33,6.05468891]
[1644582560936,48.12629426,106.4,106.33,6.30468891]
[1644582560937,47.87629426,106.4,106.33,6.30468891]
[1644582561134,1.699,106.4,106.34,1.33068891]
[1644582561334,0.03925561,106.43,106.36,1.33068891]
[1644582561537,0.03925561,106.45,106.36,1.58068891]
[1644582561735,0.03925561,106.45,106.37,4.698]
[1644582562135,48.70189073,106.45,106.37,4.698]
[1644582562535,48.95189073,106.45,106.37,4.698]
[1644582562936,40.1095871,106.43,106.37,4.698]
[1644582563137,40.3595871,106.43,106.37,0.25]
[1644582563838,40.3595871,106.43,106.37,29.61028672]
[1644582564035,1.68425561,106.44,106.38,8.41335682]
[1644582564237,0.03925561,106.45,106.38,31.08435682]
[1644582564436,1.71125561,106.48,106.39,2.38366791]
[1644582564635,0.03925561,106.45,106.4,4.697]
[1644582564837,0.03925561,106.48,106.41,22.671]
[1644582565039,36.11726516,106.48,106.41,22.921]
[1644582565437,35.86726516,106.48,106.41,22.921]
[1644582565938,35.61726516,106.48,106.41,22.921]
[1644582567041,35.61726516,106.48,106.41,22.671]
[1644582568143,35.86726516,106.48,106.41,22.671]
[1644582568343,46.58469136,106.46,106.41,22.671]
[1644582568544,46.83469136,106.46,106.41,22.671]
[1644582570546,46.58469136,106.46,106.41,22.671]
[1644582570743,47.23365561,106.49,106.41,22.921]
[1644582571146,47.48365561,106.49,106.41,22.921]
[1644582571544,47.23365561,106.49,106.41,22.921]
[1644582571743,44.09479987,106.48,106.42,44.90638349]
[1644582572245,44.09479987,106.48,106.42,45.15638349]
[1644582572445,44.09479987,106.48,106.42,0.25]
[1644582572847,44.34479987,106.48,106.41,22.671]
[1644582573647,43.3992162,106.46,106.41,22.671]
[1644582574044,43.6492162,106.46,106.41,22.671]
[1644582574445,43.3992162,106.46,106.41,27.618]
[1644582574645,43.3992162,106.46,106.41,30.00166791]
[1644582575044,43.3992162,106.46,106.41,27.618]
[1644582575244,43.3992162,106.46,106.41,27.368]
[1644582576347,43.3992162,106.46,106.41,22.671]
[1644582576745,43.3992162,106.46,106.41,22.921]
[1644582577147,43.3992162,106.46,106.41,22.671]
[1644582577347,43.3992162,106.46,106.41,22.921]
[1644582577847,43.6492162,106.46,106.41,22.921]
[1644582579953,43.6492162,106.46,106.41,55.65182094]
[1644582580152,43.6492162,106.46,106.41,22.921]
[1644582581355,43.6492162,106.46,106.41,22.671]
[1644582583774,43.6492162,106.46,106.39,28.67648891]
[1644582583975,1.677,106.45,106.39,23.97948891]
[1644582584176,1.677,106.45,106.39,22.6488]
[1644582584376,1.927,106.45,106.39,22.6488]
[1644582584675,37.41213295,106.44,106.37,29.74408891]
[1644582585076,37.66213295,106.44,106.37,29.99408891]
[1644582585276,37.66213295,106.44,106.38,39.05319232]
[1644582585477,37.66213295,106.44,106.37,44.09358891]
[1644582585778,39.33013295,106.44,106.37,29.99408891]
[1644582585981,37.66213295,106.44,106.37,29.99408891]
[1644582586182,37.66213295,106.44,106.37,29.74408891]